fUSD/lending_fUSD_20250716
["ID","MTS","AMOUNT","RATE_DAILY","PERIOD"]
[372449663,1752647478951,-3135.37,0.00022054,2]
[372449664,1752647478962,-460.0,0.00022054,2]
[372449665,1752647478972,-6462.08,0.00022054,2]
[372449666,1752647478982,-460.0,0.00022054,2]
[372449667,1752647478992,-2672.87,0.00022054,2]
[372449668,1752647479002,-460.0,0.00022054,2]
[372449669,1752647479011,-1020.4,0.00022054,2]
[372449670,1752647479021,-996.01,0.00022054,2]
[372449671,1752647479032,-460.0,0.00022054,2]
[372449672,1752647479041,-3191.44,0.00022054,2]
[372449673,1752647479051,-1496.9,0.00022054,2]
[372449674,1752647479061,-506.17,0.00022054,2]
[372449675,1752647479070,-7610.08,0.00022054,2]
[372449676,1752647479080,-460.0,0.00022054,2]
[372449677,1752647479089,-2817.23,0.00022054,2]
[372449678,1752647479099,-460.0,0.00022054,2]
[372449679,1752647479109,-460.0,0.00022054,2]
[372449680,1752647479119,-460.0,0.00022054,2]
[372449681,1752647479129,-460.0,0.00022054,2]
[372449682,1752647479139,-460.0,0.00022054,2]
[372449683,1752647479149,-460.0,0.00022054,2]
[372449684,1752647479160,-460.0,0.00022054,2]
[372449685,1752647479170,-6189.86,0.00022054,2]
[372449686,1752647479180,-2933.04,0.00022054,2]
[372449687,1752647479190,-460.0,0.00022054,2]
[372449688,1752647479200,-7608.61,0.00022054,2]
[372449689,1752647479210,-460.0,0.00022054,2]
[372449690,1752647479220,-5270.17,0.00022054,2]
[372449691,1752647479230,-3070.2,0.00022054,2]
[372449692,1752647479240,-1189.69,0.00022054,2]
[372449693,1752647479251,-1776.91,0.00022054,2]
[372449694,1752647479262,-460.0,0.00022054,2]
[372449695,1752647479272,-462.85104393,0.00022054,2]
[372449696,1752647479282,-564.01,0.00022054,2]
[372449697,1752647479291,-460.0,0.00022054,2]
[372449698,1752647479301,-460.0,0.00022054,2]
[372449699,1752647479311,-2434.5,0.00022054,2]
[372449700,1752647479321,-460.0,0.00022054,2]
[372449701,1752647479331,-3087.98,0.00022054,2]
[372449702,1752647479341,-20876.35,0.00022054,2]
[372449703,1752647479351,-2134.13,0.00022054,2]
[372449704,1752647479361,-448.95354858,0.00022054,2]
[372449705,1752647479371,-460.0,0.00022054,2]
[372449706,1752647479381,-460.0,0.00022054,2]
[372449707,1752647479391,-460.0,0.00022054,2]
[372449708,1752647479401,-1578.66,0.00022054,2]
[372449709,1752647479411,-2019.39,0.00022054,2]
[372449710,1752647479420,-3506.64,0.00022054,2]
[372449711,1752647479431,-2052.87,0.00022054,2]
[372449712,1752647479441,-837.34,0.00022054,2]
[372449713,1752647479451,-704.37,0.00022054,2]
[372449714,1752647479462,-460.0,0.00022054,2]
[372449715,1752647479472,-166.49185769,0.00022054,2]
[372449716,1752647479482,-848.22,0.00022054,2]
[372449717,1752647479492,-1351.58,0.00022054,2]
[372449718,1752647479503,-4251.78,0.00022054,2]
[372449719,1752647479514,-1676.96,0.00022054,2]
[372449720,1752647479525,-6168.4,0.00022054,2]
[372449721,1752647479535,-5170.14,0.00022054,2]
[372449722,1752647479545,-7781.83,0.00022054,2]
[372449723,1752647479555,-4905.5,0.00022054,2]
[372449724,1752647479565,-797.39,0.00022054,2]
[372449725,1752647479576,-460.0,0.00022054,2]
[372449726,1752647479586,-5709.63,0.00022054,2]
[372449727,1752647479596,-2965.81,0.00022054,2]
[372449728,1752647479606,-1060.992755,0.00022054,7]
[372449729,1752647479616,-460.0,0.00022054,2]
[372449730,1752647479626,-1060.992755,0.00022054,7]
[372449731,1752647479636,-1060.992755,0.00022054,7]
[372449732,1752647479646,-1060.992755,0.00022054,7]
[372449733,1752647479656,-1060.992755,0.00022054,7]
[372449734,1752647479665,-7808.6,0.00022054,2]
[372449735,1752647479675,-1060.992755,0.00022054,7]
[372449736,1752647479689,-604.33,0.00022054,2]
[372449737,1752647479699,-7056.33,0.00022054,2]
[372449738,1752647479709,-460.0,0.00022054,2]
[372449739,1752647479719,-3762.01,0.00022054,2]
[372449740,1752647479729,-460.0,0.00022054,2]
[372449741,1752647479738,-1060.992755,0.00022054,7]
[372449742,1752647479748,-1060.992755,0.00022054,7]
[372449743,1752647479758,-1060.992755,0.00022054,7]
[372449744,1752647479767,-460.0,0.00022054,2]
[372449745,1752647479777,-460.0,0.00022054,2]
[372449746,1752647479787,-1060.992755,0.00022054,7]
[372449747,1752647479796,-1060.992755,0.00022054,7]
[372449748,1752647479806,-35219.72,0.00022054,2]
[372449749,1752647479816,-1535.98,0.00022054,2]
[372449750,1752647479825,-1060.99275766,0.00022054,7]
[372449751,1752647479835,-1730.13,0.00022054,2]
[372449752,1752647479845,-460.0,0.00022054,2]
[372449753,1752647479855,-3979.09,0.00022054,2]
[372449754,1752647479864,-460.0,0.00022054,2]
[372449755,1752647479874,-5659.05,0.00022054,2]
[372449756,1752647479884,-7832.88,0.00022054,2]
[372449757,1752647479894,-4228.06,0.00022054,2]
[372449758,1752647479903,-520.82,0.00022054,2]
[372449759,1752647479913,-8473.22,0.00022054,2]
[372449760,1752647479922,-1473.59,0.00022054,2]
[372449761,1752647479932,-460.0,0.00022054,2]
[372449762,1752647479941,-645.62,0.00022054,2]
[372449763,1752647479952,-499.37,0.00022054,2]
[372449764,1752647479962,-635.38,0.00022054,2]
[372449765,1752647479972,-460.0,0.00022054,2]
[372449766,1752647479982,-2448.94,0.00022054,2]
[372449767,1752647479992,-460.0,0.00022054,2]
[372449768,1752647480002,-151.0,0.00022054,7]
[372449769,1752647480011,-460.0,0.00022054,2]
[372449770,1752647480021,-151.0,0.00022054,7]
[372449771,1752647480030,-1244.03,0.00022054,2]
[372449772,1752647480040,-3961.48,0.00022054,2]
[372449773,1752647480050,-1842.34,0.00022054,2]
[372449774,1752647480060,-460.0,0.00022054,2]
[372449775,1752647480070,-705.72,0.00022054,2]
[372449776,1752647480080,-587.14,0.00022054,2]
[372449777,1752647480090,-15063.3,0.00022054,2]
[372449778,1752647480099,-500.0,0.00022054,2]
[372449779,1752647480109,-6531.51,0.00022054,2]
[372449780,1752647480119,-10317.02,0.00022054,2]
[372449781,1752647480128,-8613.83,0.00022054,2]
[372449782,1752647480138,-500.0,0.00022054,2]
[372449783,1752647480148,-819.81,0.00022054,2]
[372449784,1752647480157,-220.02074381,0.00022054,2]
[372449785,1752647480167,-17872.98,0.00022054,2]
[372449786,1752647480177,-7063.81,0.00022054,2]
[372449787,1752647480187,-462.85897206,0.00022054,2]
[372449788,1752647480196,-3703.01,0.00022054,2]
[372449789,1752647480207,-1272.22,0.00022054,2]
[372449790,1752647480217,-460.0,0.00022054,2]
[372449791,1752647480226,-470.35,0.00022054,2]
[372449792,1752647480236,-460.0,0.00022054,2]
[372449793,1752647480246,-460.0,0.00022054,2]
[372449794,1752647480255,-460.0,0.00022054,2]
[372449795,1752647480265,-1900.37,0.00022054,2]
[372449796,1752647480275,-5123.0,0.00022054,2]
[372449797,1752647480284,-2786.71,0.00022054,2]
[372449798,1752647480293,-498.57,0.00022054,2]
[372449799,1752647480303,-3753.3,0.00022054,2]
[372449800,1752647480313,-2091.94,0.00022054,2]
[372449801,1752647480322,-460.0,0.00022054,2]
[372449802,1752647480332,-460.0,0.00022054,2]
[372449803,1752647480342,-1118.98,0.00022054,2]
[372449804,1752647480352,-784.73,0.00022054,2]
[372449805,1752647480362,-533.56711352,0.00022054,2]
[372449806,1752647480483,-3716.65,0.00022054,2]
[372449807,1752647480493,-5827.61,0.00022054,2]
[372449808,1752647480503,-2678.44,0.00022054,2]
[372449809,1752647480513,-1557.04,0.00022054,2]
[372449810,1752647480523,-460.0,0.00022054,2]
[372449811,1752647480533,-1008.24,0.00022054,2]
[372449812,1752647480543,-1045.31,0.00022054,2]
[372449813,1752647480553,-554.59,0.00022054,2]
[372449814,1752647480563,-460.0,0.00022054,2]
[372449815,1752647480572,-500.0,0.00022054,2]
[372449816,1752647480582,-460.0,0.00022054,2]
[372449817,1752647480592,-153.6060871,0.00022054,2]
[372449818,1752647480602,-460.0,0.00022054,2]
[372449819,1752647480612,-509.14,0.00022054,2]
[372449820,1752647480622,-469.792473,0.00022054,7]
[372449821,1752647480631,-10689.87,0.00022054,2]
[372449822,1752647480641,-469.792473,0.00022054,7]
[372449823,1752647480651,-915.35,0.00022054,2]
[372449824,1752647480660,-460.0,0.00022054,2]
[372449825,1752647480669,-150.0,0.00022054,2]
[372449826,1752647480679,-469.792473,0.00022054,7]
[372449827,1752647480692,-460.0,0.00022054,2]
[372449828,1752647480702,-469.792473,0.00022054,7]
[372449829,1752647480712,-153.0,0.00022054,2]
[372449830,1752647480721,-469.792473,0.00022054,7]
[372449831,1752647480731,-460.0,0.00022054,2]
[372449832,1752647480740,-500.0,0.00022054,2]
[372449833,1752647480749,-153.0,0.00022054,2]
[372449834,1752647480759,-4415.95,0.00022054,2]
[372449835,1752647480768,-153.0,0.00022054,2]
[372449836,1752647480777,-469.792473,0.00022054,7]
[372449837,1752647480786,-153.0,0.00022054,2]
[372449838,1752647480796,-153.87333875,0.00022054,2]
[372449839,1752647480805,-488.59,0.00022054,2]
[372449840,1752647480815,-683.01,0.00022054,2]
[372449841,1752647480824,-469.792473,0.00022054,7]
[372449842,1752647480834,-469.792473,0.00022054,7]
[372449843,1752647480843,-151.0,0.00022054,2]
[372449844,1752647480853,-469.792473,0.00022054,7]
[372449845,1752647480862,-460.0,0.00022054,2]
[372449846,1752647480872,-151.0,0.00022054,2]
[372449847,1752647480882,-469.792473,0.00022054,7]
[372449848,1752647480891,-151.0,0.00022054,2]
[372449849,1752647480901,-469.792473,0.00022054,7]
[372449850,1752647480910,-2092.45,0.00022054,2]
[372449851,1752647480920,-153.37950362,0.00022054,2]
[372449852,1752647480930,-469.792479,0.00022054,7]
[372449853,1752647480939,-3088.23,0.00022054,2]
[372449854,1752647480949,-11390.4,0.00022054,2]
[372449855,1752647480960,-746.4,0.00022054,2]
[372449856,1752647480970,-27832.85,0.00022054,2]
[372449857,1752647480980,-519.49,0.00022054,2]
[372449858,1752647480990,-460.0,0.00022054,2]
[372449859,1752647481000,-2540.86,0.00022054,2]
[372449860,1752647481009,-500.0,0.00022054,2]
[372449861,1752647481019,-460.0,0.00022054,2]
[372449862,1752647481029,-460.0,0.00022054,2]
[372449863,1752647481039,-460.0,0.00022054,2]
[372449864,1752647481049,-460.77137677,0.00022054,2]
[372449865,1752647481059,-500.0,0.00022054,2]
[372449866,1752647481069,-212.93419,0.00022054,7]
[372449867,1752647481079,-63466.06,0.00022054,2]
[372449868,1752647481088,-7808.38,0.00022054,2]
[372449869,1752647481098,-6457.56,0.00022054,2]
[372449870,1752647481108,-212.93419,0.00022054,7]
[372449871,1752647481119,-212.93419,0.00022054,7]
[372449872,1752647481128,-837.79,0.00022054,2]
[372449873,1752647481138,-212.93419,0.00022054,7]
[372449874,1752647481148,-212.93419,0.00022054,7]
[372449875,1752647481158,-493.46383809,0.00022054,2]
[372449876,1752647481167,-5716.64,0.00022054,2]
[372449877,1752647481177,-853.73,0.00022054,2]
[372449878,1752647481187,-1351.67,0.00022054,2]
[372449879,1752647481197,-152819.68,0.00022054,2]
[372449880,1752647481207,-11496.38,0.00022054,2]
[372449881,1752647481217,-1918.98,0.00022054,2]
[372449882,1752647481226,-460.0,0.00022054,2]
[372449883,1752647481236,-302.54774229,0.00022054,2]
[372449884,1752647481245,-212.93419,0.00022054,7]
[372449885,1752647481255,-460.0,0.00022054,2]
[372449886,1752647481265,-4891.64,0.00022054,2]
[372449887,1752647481276,-460.72055114,0.00022054,2]
[372449888,1752647481286,-212.93419,0.00022054,7]
[372449889,1752647481296,-212.93419,0.00022054,7]
[372449890,1752647481306,-700.0,0.00022054,8]
[372449891,1752647481315,-700.0,0.00022054,8]
[372449892,1752647481325,-700.0,0.00022054,8]
[372449893,1752647481335,-700.0,0.00022054,8]
[372449894,1752647481345,-700.0,0.00022054,8]
[372449895,1752647481354,-700.0,0.00022054,8]
[372449896,1752647481364,-700.0,0.00022054,8]
[372449897,1752647481373,-700.0,0.00022054,8]
[372449898,1752647481383,-700.0,0.00022054,8]
[372449899,1752647481392,-700.0,0.00022054,8]
[372449900,1752647481402,-700.0,0.00022054,8]
[372449901,1752647481412,-700.0,0.00022054,8]
[372449902,1752647481422,-700.0,0.00022054,8]
[372449903,1752647481431,-700.0,0.00022054,8]
[372449904,1752647481441,-700.0,0.00022054,8]
[372449905,1752647481451,-700.0,0.00022054,8]
[372449906,1752647481461,-700.0,0.00022054,8]
[372449907,1752647481470,-700.0,0.00022054,8]
[372449908,1752647481481,-700.0,0.00022054,8]
[372449909,1752647481490,-700.0,0.00022054,8]
[372449910,1752647481500,-838.7287696,0.0002206,7]
[372449911,1752647481510,-1345.85792874,0.00022064,2]
[372449912,1752647481520,-1987.73,0.00022064,2]
[372449913,1752647481530,-151.0,0.00022065,7]
[372449914,1752647481539,-151.0,0.00022065,7]
[372449915,1752647481550,-76630.7780623,0.00022065,2]
[372449916,1752647481559,-22241.5080541,0.00022065,2]
[372449917,1752647481569,-193.435213,0.00022065,7]
[372449918,1752647481579,-193.435213,0.00022065,7]
[372449919,1752647481590,-2353.8117916,0.00022065,2]
[372449920,1752647481599,-4224.0001344,0.00022065,2]
[372449921,1752647481609,-502.89759716,0.0002207,2]
[372449922,1752647481618,-400.0,0.0002207,2]
[372449923,1752647481628,-400.0,0.0002207,2]
[372449924,1752647481637,-400.0,0.0002207,2]
[372449925,1752647481647,-400.0,0.0002207,2]
[372449926,1752647481656,-502.54647072,0.00022073,2]
[372449927,1752647481666,-500.0,0.00022073,2]
[372449928,1752647481675,-372.15419791,0.00022073,2]
[372449929,1752647481687,-500.0,0.00022073,2]
[372449930,1752647481697,-500.0,0.00022073,2]
[372449931,1752647481707,-500.0,0.00022073,2]
[372449932,1752647481716,-500.0,0.00022073,2]
[372449933,1752647481726,-500.0,0.00022073,2]
[372449934,1752647481736,-161.76687069,0.00022073,2]
[372449935,1752647481745,-500.0,0.00022073,2]
[372449936,1752647481756,-501.5122245,0.00022073,2]
[372449937,1752647481766,-160.58599688,0.00022073,2]
[372449938,1752647481777,-538.6456939,0.00022073,2]
[372449939,1752647481786,-500.0,0.00022073,2]
[372449940,1752647481796,-501.17518061,0.00022073,2]
[372449941,1752647481807,-501.10542618,0.00022073,2]
[372449942,1752647481819,-504.08184407,0.00022073,2]
[372449943,1752647481828,-500.0,0.00022073,2]
[372449944,1752647481839,-504.18779699,0.00022073,2]
[372449945,1752647481851,-500.0,0.00022073,2]
[372449946,1752647481860,-503.49336062,0.00022073,2]
[372449947,1752647481870,-500.0,0.00022073,2]
[372449948,1752647481880,-503.10552444,0.00022073,2]
[372449949,1752647481889,-500.0,0.00022079,2]
[372449950,1752647481899,-500.0,0.00022079,2]
[372449951,1752647481908,-500.0,0.00022079,2]
[372449952,1752647481917,-607.11076354,0.00022079,2]
[372449953,1752647481927,-500.0,0.00022079,2]
[372449954,1752647481937,-500.0,0.00022079,2]
[372449955,1752647481946,-500.0,0.00022079,2]
[372449956,1752647481956,-500.0,0.00022079,2]
[372449957,1752647481966,-682.81,0.00022079,2]
[372449958,1752647481976,-682.81,0.00022079,2]
[372449959,1752647481986,-682.81,0.00022079,2]
[372449960,1752647481996,-682.81,0.00022079,2]
[372449961,1752647482006,-682.81,0.00022079,2]
[372449962,1752647482016,-682.81,0.00022079,2]
[372449963,1752647482025,-1987.73,0.00022079,2]
[372449964,1752647482035,-1987.73,0.00022079,2]
[372449965,1752647482044,-1987.73,0.00022079,2]
[372449966,1752647482054,-1987.73,0.00022079,2]
[372449967,1752647482063,-1987.73,0.00022079,2]
[372449968,1752647482073,-1987.73,0.00022079,2]
[372449969,1752647482083,-1987.73,0.00022079,2]
[372449970,1752647482093,-1987.95649032,0.00022079,2]
[372449971,1752647482103,-1152.25,0.00022079,2]
[372449972,1752647482112,-1152.25,0.00022079,2]
[372449973,1752647482122,-1152.25,0.00022079,2]
[372449974,1752647482131,-1152.25,0.00022079,2]
[372449975,1752647482141,-1152.25,0.00022079,2]
[372449976,1752647482151,-1152.25,0.00022079,2]
[372449977,1752647482162,-150.0,0.00022079,2]
[372449978,1752647482174,-174.84070238,0.00022079,2]
[372449979,1752647482184,-1519745.5141739,0.0002208,2]
[372449980,1752647482194,-192.186733,0.0002208,7]
[372449981,1752647482204,-151.0,0.0002208,7]
[372449982,1752647482214,-152.334035,0.0002208,7]
[372449983,1752647482224,-151.0,0.0002208,7]
[372449984,1752647482233,-151.0,0.0002208,7]
[372449985,1752647482243,-151.0,0.0002208,7]
[372449986,1752647482252,-151.0,0.0002208,7]
[372449987,1752647482262,-151.0,0.0002208,7]
[372449988,1752647482271,-259.000331,0.0002208,7]
[372449989,1752647482280,-259.000331,0.0002208,7]
[372449990,1752647482289,-259.000331,0.0002208,7]
[372449991,1752647482299,-259.000331,0.0002208,7]
[372449992,1752647482308,-151.0,0.0002208,7]
[372449993,1752647482318,-166.577186,0.0002208,7]
[372449994,1752647482327,-151.0,0.0002208,7]
[372449995,1752647482337,-400.276709,0.0002208,7]
[372449996,1752647482347,-400.276713,0.0002208,7]
[372449997,1752647482357,-151.0,0.0002208,7]
[372449998,1752647482367,-193.435213,0.0002208,7]
[372449999,1752647482377,-195.568276,0.0002208,7]
[372450000,1752647482386,-195.568276,0.0002208,7]
[372450001,1752647482397,-193.435217,0.0002208,7]
[372450002,1752647482407,-385.714868,0.0002208,7]
[372450003,1752647482417,-385.714865,0.0002208,7]
[372450004,1752647482428,-333.29,0.00022091,4]
[372450005,1752647482437,-337.33,0.00022091,4]
[372450006,1752647482447,-360.94,0.00022091,4]
[372450007,1752647482458,-162.30177286,0.00022091,2]
[372450008,1752647482468,-949.2449,0.000221,2]
[372450009,1752647482477,-949.2449,0.000221,2]
[372450010,1752647482487,-665.2959,0.000221,2]
[372450011,1752647482497,-665.2959,0.000221,2]
[372450012,1752647482506,-1675.84725157,0.00022105,2]
[372450013,1752647482516,-152.0,0.00022112,4]
[372450014,1752647482526,-1082.0,0.00022117,2]
[372450015,1752647482536,-1345.85792874,0.00022146,2]
[372450016,1752647482545,-2343.9507198,0.00022146,2]
[372450017,1752647482555,-157.13513858,0.0002216,2]
[372450018,1752647482564,-3168.8792279,0.00022161,2]
[372450019,1752647482574,-232.7010194,0.00022161,2]
[372450020,1752647482584,-103824.0010458,0.00022161,2]
[372450021,1752647482594,-601.72969513,0.0002217,2]
[372450022,1752647482604,-500.0,0.00022173,2]
[372450023,1752647482613,-500.0,0.00022173,2]
[372450024,1752647482623,-551.9286947,0.00022173,2]
[372450025,1752647482632,-502.67674096,0.00022173,2]
[372450026,1752647482642,-500.0,0.00022173,2]
[372450027,1752647482651,-500.0,0.00022173,2]
[372450028,1752647482660,-500.0,0.00022173,2]
[372450029,1752647482670,-500.92578817,0.00022173,2]
[372450030,1752647482681,-454.7004134,0.00022173,2]
[372450031,1752647482693,-160.87840518,0.00022173,2]
[372450032,1752647482702,-500.0,0.00022173,2]
[372450033,1752647482713,-500.0,0.00022173,2]
[372450034,1752647482722,-500.0,0.00022173,2]
[372450035,1752647482732,-513.55361358,0.00022173,2]
[372450036,1752647482742,-500.0,0.00022173,2]
[372450037,1752647482751,-500.0,0.00022173,2]
[372450038,1752647482762,-189.28827742,0.00022173,2]
[372450039,1752647482772,-500.0,0.00022173,2]
[372450040,1752647482782,-394.49847552,0.00022173,2]
[372450041,1752647482791,-515.60381198,0.00022173,2]
[372450042,1752647482801,-500.0,0.00022173,2]
[372450043,1752647482811,-505.3179684,0.00022173,2]
[372450044,1752647482820,-500.0,0.00022173,2]
[372450045,1752647482829,-500.0,0.00022173,2]
[372450046,1752647482839,-501.31926841,0.00022173,2]
[372450047,1752647482848,-682.81,0.00022175,2]
[372450048,1752647482857,-1152.25,0.00022175,2]
[372450049,1752647482867,-2631.58017696,0.00022176,6]
[372450050,1752647482877,-2443.4510787,0.00022176,2]
[372450051,1752647482886,-232.7010194,0.00022176,2]
[372450052,1752647482896,-80056.3382545,0.00022176,2]
[372450053,1752647482905,-2378.8406381,0.00022176,2]
[372450054,1752647482915,-78048.4080778,0.00022176,2]
[372450055,1752647482924,-22652.9645238,0.00022176,2]
[372450056,1752647482934,-2406.9601825,0.00022176,2]
[372450057,1752647482943,-4319.3768382,0.00022176,2]
[372450058,1752647482952,-150.0,0.0002219,2]
[372450059,1752647482962,-682.81,0.0002219,2]
[372450060,1752647482972,-682.81,0.0002219,2]
[372450061,1752647482982,-682.81,0.0002219,2]
[372450062,1752647482992,-682.81,0.0002219,2]
[372450063,1752647483001,-682.81,0.0002219,2]
[372450064,1752647483010,-682.81,0.0002219,2]
[372450065,1752647483020,-683.01704579,0.0002219,2]
[372450066,1752647483029,-1152.25,0.0002219,2]
[372450067,1752647483039,-1152.25,0.0002219,2]
[372450068,1752647483049,-1152.25,0.0002219,2]
[372450069,1752647483058,-1152.25,0.0002219,2]
[372450070,1752647483068,-1152.25,0.0002219,2]
[372450071,1752647483077,-1152.25,0.0002219,2]
[372450072,1752647483087,-1152.29,0.0002219,2]
[372450073,1752647483097,-300.0,0.0002219,2]
[372450074,1752647483106,-666.0,0.0002219,2]
[372450075,1752647483116,-3327.52819175,0.00022191,2]
[372450076,1752647483125,-500.0,0.00022191,2]
[372450077,1752647483135,-1539.29,0.00022191,2]
[372450078,1752647483144,-1245.76,0.00022191,2]
[372450079,1752647483154,-730.24,0.00022191,2]
[372450080,1752647483163,-166.17468341,0.00022191,2]
[372450081,1752647483173,-460.0,0.00022191,2]
[372450082,1752647483183,-460.0,0.00022191,2]
[372450083,1752647483193,-460.0,0.00022191,2]
[372450084,1752647483203,-460.0,0.00022191,2]
[372450085,1752647483213,-471.95,0.00022191,2]
[372450086,1752647483222,-460.0,0.00022191,2]
[372450087,1752647483232,-894.61,0.00022191,2]
[372450088,1752647483242,-460.0,0.00022191,2]
[372450089,1752647483252,-460.0,0.00022191,2]
[372450090,1752647483262,-460.0,0.00022191,2]
[372450091,1752647483271,-513.35,0.00022191,2]
[372450092,1752647483281,-460.0,0.00022191,2]
[372450093,1752647483291,-460.0,0.00022191,2]
[372450094,1752647483301,-205.75380712,0.00022191,2]
[372450095,1752647483310,-1093.04,0.00022191,2]
[372450096,1752647483320,-960.71,0.00022191,2]
[372450097,1752647483329,-960.71,0.00022191,2]
[372450098,1752647483339,-460.0,0.00022191,2]
[372450099,1752647483349,-589.32,0.00022191,2]
[372450100,1752647483359,-380.1,0.00022191,2]
[372450101,1752647483369,-460.0,0.00022191,2]
[372450102,1752647483378,-521.52,0.00022191,2]
[372450103,1752647483388,-248.96763861,0.00022191,2]
[372450104,1752647483398,-167.050916,0.00022191,2]
[372450105,1752647483407,-460.0,0.00022191,2]
[372450106,1752647483416,-151.532438,0.00022191,7]
[372450107,1752647483426,-463.54386585,0.00022191,2]
[372450108,1752647483436,-460.0,0.00022191,2]
[372450109,1752647483446,-993.25,0.00022191,2]
[372450110,1752647483456,-657.92,0.00022191,2]
[372450111,1752647483467,-460.0,0.00022191,2]
[372450112,1752647483477,-915.83,0.00022191,2]
[372450113,1752647483487,-460.0,0.00022191,2]
[372450114,1752647483496,-555.78,0.00022191,2]
[372450115,1752647483506,-342.7654309,0.00022191,2]
[372450116,1752647483515,-460.0,0.00022191,2]
[372450117,1752647483525,-525.36907977,0.00022191,2]
[372450118,1752647483535,-460.0,0.00022191,2]
[372450119,1752647483544,-460.0,0.00022191,2]
[372450120,1752647483555,-460.0,0.00022191,2]
[372450121,1752647483564,-460.0,0.00022191,2]
[372450122,1752647483573,-460.0,0.00022191,2]
[372450123,1752647483583,-460.0,0.00022191,2]
[372450124,1752647483592,-460.0,0.00022191,2]
[372450125,1752647483602,-460.0,0.00022191,2]
[372450126,1752647483612,-473.3,0.00022191,2]
[372450127,1752647483621,-460.0,0.00022191,2]
[372450128,1752647483631,-460.0,0.00022191,2]
[372450129,1752647483640,-1251.02,0.00022191,2]
[372450130,1752647483650,-151.0,0.00022191,7]
[372450131,1752647483660,-151.0,0.00022191,7]
[372450132,1752647483669,-1001.9,0.00022191,2]
[372450133,1752647483681,-465.61578846,0.00022191,2]
[372450134,1752647483693,-774.46,0.00022191,2]
[372450135,1752647483702,-368.19593149,0.00022191,2]
[372450136,1752647484756,-91.80406851,0.00022191,2]
[372450137,1752647484768,-340.00593141,0.00022191,2]
[372450138,1752647485399,-157.53768886,0.00019344,2]
[372450139,1752647485409,-460.0,0.00021917,2]
[372450140,1752647485420,-460.0,0.00021917,2]
[372450141,1752647485441,-460.0,0.00021917,2]
[372450142,1752647485463,-460.44132861,0.00021917,2]
[372450143,1752647485474,-460.0,0.00021917,2]
[372450144,1752647485484,-500.0,0.00021917,2]
[372450145,1752647485496,-460.0,0.00022054,2]
[372450146,1752647485506,-212.93419,0.00022054,7]
[372450147,1752647485516,-460.0,0.00022054,2]
[372450148,1752647485526,-212.934194,0.00022054,7]
[372450149,1752647485536,-460.0,0.00022054,2]
[372450150,1752647485545,-3909.58,0.00022054,2]
[372450151,1752647485555,-401.83406859,0.00022191,2]
[372450152,1752647485565,-462.80671132,0.00022191,2]
[372450153,1752647485575,-460.0,0.00022191,2]
[372450154,1752647485584,-460.0,0.00022191,2]
[372450155,1752647485594,-155.332541,0.00022191,7]
[372450156,1752647485603,-155.332541,0.00022191,7]
[372450157,1752647485613,-155.332541,0.00022191,7]
[372450158,1752647485623,-155.332541,0.00022191,7]
[372450159,1752647485632,-681.57,0.00022191,2]
[372450160,1752647485643,-151.0,0.00022191,7]
[372450161,1752647485652,-155.332541,0.00022191,7]
[372450162,1752647485661,-151.0,0.00022191,7]